[Event "*** Titled Tuesday Blitz"]
[Site "Chess.com"]
[Date "2020.05.12"]
[Round "2"]
[White "hongnhung1234"]
[Black "fyall777"]
[Result "1-0"]
[WhiteElo "2243"]
[BlackElo "2440"]
[TimeControl "180+1"]
[EndTime "10:17:02 PDT"]
[Termination "hongnhung1234 won on time"]

1. e4 {[%clk 0:02:59.2]} 1... c5 {[%clk 0:02:59.7]} 2. Nc3 {[%clk 0:02:55.1]}
2... Nc6 {[%clk 0:02:59.1]} 3. f4 {[%clk 0:02:44.8]} 3... e6 {[%clk 0:02:58.8]}
4. Nf3 {[%clk 0:02:43.3]} 4... d5 {[%clk 0:02:58.9]} 5. Bb5 {[%clk 0:02:43.3]}
5... d4 {[%clk 0:02:58.7]} 6. Bxc6+ {[%clk 0:02:43.2]} 6... bxc6 {[%clk
0:02:58.4]} 7. Na4 {[%clk 0:02:44.1]} 7... c4 {[%clk 0:02:53.5]} 8. b3 {[%clk
0:02:41]} 8... Ba6 {[%clk 0:02:45.7]} 9. Ne5 {[%clk 0:02:37.8]} 9... cxb3 {[%clk
0:02:23.3]} 10. axb3 {[%clk 0:02:38.2]} 10... Bb5 {[%clk 0:02:23.5]} 11. d3
{[%clk 0:02:12.4]} 11... Bd6 {[%clk 0:02:08.1]} 12. O-O {[%clk 0:01:58.8]} 12...
Ne7 {[%clk 0:02:07.5]} 13. Bb2 {[%clk 0:01:52.3]} 13... Bxe5 {[%clk 0:02:03.4]}
14. fxe5 {[%clk 0:01:51.9]} 14... Ng6 {[%clk 0:02:03.9]} 15. Qg4 {[%clk
0:01:45.2]} 15... O-O {[%clk 0:02:02.4]} 16. Qg3 {[%clk 0:01:40.3]} 16... Rc8
{[%clk 0:01:46.1]} 17. Nc5 {[%clk 0:01:40]} 17... h5 {[%clk 0:01:31.4]} 18. Nxe6
{[%clk 0:01:31.7]} 18... h4 {[%clk 0:01:31.5]} 19. Qxg6 {[%clk 0:01:16.7]} 19...
fxg6 {[%clk 0:01:28.4]} 20. Nxd8 {[%clk 0:01:16.8]} 20... Rxf1+ {[%clk
0:01:20.3]} 21. Kxf1 {[%clk 0:01:17.7]} 21... Rxd8 {[%clk 0:01:20.2]} 22. Rxa7
{[%clk 0:01:17.3]} 22... g5 {[%clk 0:01:09.2]} 23. e6 {[%clk 0:01:13.5]} 23...
g4 {[%clk 0:00:52.5]} 24. e7 {[%clk 0:01:11.4]} 24... Re8 {[%clk 0:00:50.9]} 25.
Bxd4 {[%clk 0:01:11.4]} 25... Kf7 {[%clk 0:00:51]} 26. Bc5 {[%clk 0:01:08.7]}
1-0

[Event "*** Titled Tuesday Blitz"]
[Site "Chess.com"]
[Date "2020.05.12"]
[Round "2"]
[White "MPGM"]
[Black "GMSrinath"]
[Result "0-1"]
[WhiteElo "2526"]
[BlackElo "2815"]
[TimeControl "180+1"]
[EndTime "10:17:03 PDT"]
[Termination "GMSrinath won by checkmate"]

1. d4 {[%clk 0:03:00.9]} 1... Nf6 {[%clk 0:02:59.1]} 2. c4 {[%clk 0:02:56.6]}
2... e6 {[%clk 0:02:58.8]} 3. Nf3 {[%clk 0:02:54.6]} 3... d5 {[%clk 0:02:59]} 4.
g3 {[%clk 0:02:52.1]} 4... dxc4 {[%clk 0:02:57.7]} 5. Bg2 {[%clk 0:02:51.6]}
5... a6 {[%clk 0:02:58.2]} 6. O-O {[%clk 0:02:49.4]} 6... Nc6 {[%clk 0:02:58.8]}
7. e3 {[%clk 0:02:44.6]} 7... Rb8 {[%clk 0:02:59.2]} 8. Nfd2 {[%clk 0:02:41.8]}
8... e5 {[%clk 0:02:57]} 9. Bxc6+ {[%clk 0:02:38.2]} 9... bxc6 {[%clk
0:02:57.9]} 10. dxe5 {[%clk 0:02:38.9]} 10... Ng4 {[%clk 0:02:58.2]} 11. Nxc4
{[%clk 0:02:37.3]} 11... Be6 {[%clk 0:02:53.9]} 12. Nbd2 {[%clk 0:02:36.3]}
12... Bb4 {[%clk 0:02:54.4]} 13. b3 {[%clk 0:02:20.1]} 13... h5 {[%clk
0:02:52.3]} 14. h3 {[%clk 0:02:15.7]} 14... Bc3 {[%clk 0:02:23.1]} 15. Ba3
{[%clk 0:02:14.2]} 15... Bxa1 {[%clk 0:02:21.9]} 16. Qxa1 {[%clk 0:02:12.3]}
16... h4 {[%clk 0:02:22.4]} 17. hxg4 {[%clk 0:01:54.7]} 17... hxg3 {[%clk
0:02:22.2]} 18. Kg2 {[%clk 0:01:19.7]} 18... Rh2+ {[%clk 0:01:42.6]} 19. Kf3
{[%clk 0:01:18.6]} 19... Qh4 {[%clk 0:01:38.8]} 20. Qd4 {[%clk 0:01:10]} 20...
Rd8 {[%clk 0:01:11.8]} 21. Qf4 {[%clk 0:01:04.6]} 21... g2 {[%clk 0:00:50]} 22.
Rg1 {[%clk 0:00:51.1]} 22... g5 {[%clk 0:00:50.1]} 23. Qg3 {[%clk 0:00:17]}
23... Rh3 {[%clk 0:00:49.3]} 24. Rxg2 {[%clk 0:00:13.4]} 24... Qxg4# {[%clk
0:00:47.1]} 0-1

[Event "*** Titled Tuesday Blitz"]
[Site "Chess.com"]
[Date "2020.05.12"]
[Round "2"]
[White "Pudor"]
[Black "BelaKis"]
[Result "1-0"]
[WhiteElo "2396"]
[BlackElo "2081"]
[TimeControl "180+1"]
[EndTime "10:17:04 PDT"]
[Termination "Pudor won on time"]

1. d4 {[%clk 0:03:00.9]} 1... Nf6 {[%clk 0:02:59.1]} 2. c4 {[%clk 0:03:00.4]}
2... g6 {[%clk 0:02:59.2]} 3. Nc3 {[%clk 0:02:59.2]} 3... Bg7 {[%clk 0:02:59.7]}
4. e4 {[%clk 0:02:58.9]} 4... d6 {[%clk 0:02:59.9]} 5. Nf3 {[%clk 0:02:59]} 5...
O-O {[%clk 0:03:00.2]} 6. Be2 {[%clk 0:02:59]} 6... e5 {[%clk 0:02:58.7]} 7. O-O
{[%clk 0:02:58.8]} 7... Nc6 {[%clk 0:02:58.5]} 8. d5 {[%clk 0:02:58.8]} 8... Ne7
{[%clk 0:02:58.6]} 9. Ne1 {[%clk 0:02:59.2]} 9... Ne8 {[%clk 0:02:56.4]} 10. Nd3
{[%clk 0:02:59.7]} 10... f5 {[%clk 0:02:56.5]} 11. Bd2 {[%clk 0:03:00]} 11...
Nf6 {[%clk 0:02:44]} 12. f3 {[%clk 0:02:48.1]} 12... f4 {[%clk 0:02:36.8]} 13.
g4 {[%clk 0:02:43.4]} 13... h5 {[%clk 0:02:32.9]} 14. h3 {[%clk 0:02:42.5]}
14... g5 {[%clk 0:02:32.7]} 15. Kg2 {[%clk 0:02:41.3]} 15... Ng6 {[%clk
0:02:32.7]} 16. Be1 {[%clk 0:02:39.8]} 16... Rf7 {[%clk 0:01:58.7]} 17. Bf2
{[%clk 0:02:36.1]} 17... Bf8 {[%clk 0:01:58.7]} 18. Rh1 {[%clk 0:02:35.6]} 18...
Rh7 {[%clk 0:01:58.7]} 19. Qc2 {[%clk 0:02:35.6]} 19... c5 {[%clk 0:00:43.5]}
20. a3 {[%clk 0:02:25.6]} 20... b6 {[%clk 0:00:22.2]} 21. b4 {[%clk 0:02:24.1]}
21... a5 {[%clk 0:00:19.1]} 22. Rab1 {[%clk 0:02:20.8]} 22... Raa7 {[%clk
0:00:17]} 23. bxc5 {[%clk 0:02:14.5]} 23... bxc5 {[%clk 0:00:16.7]} 24. Rb8
{[%clk 0:02:07]} 24... Qc7 {[%clk 0:00:15.2]} 25. Qb3 {[%clk 0:02:01]} 25... Rb7
{[%clk 0:00:15.1]} 26. Rxb7 {[%clk 0:02:00.3]} 26... Qxb7 {[%clk 0:00:16]} 27.
Qxb7 {[%clk 0:01:59.2]} 27... Rxb7 {[%clk 0:00:16.9]} 28. Nb5 {[%clk 0:01:56.5]}
28... hxg4 {[%clk 0:00:16.2]} 29. hxg4 {[%clk 0:01:55]} 29... Bd7 {[%clk
0:00:16.5]} 30. a4 {[%clk 0:01:53.7]} 30... Bxb5 {[%clk 0:00:15.6]} 31. cxb5
{[%clk 0:01:49.6]} 31... Be7 {[%clk 0:00:16.5]} 32. Nb2 {[%clk 0:01:47.3]} 32...
Nd7 {[%clk 0:00:15.7]} 33. Nc4 {[%clk 0:01:46.3]} 33... Ra7 {[%clk 0:00:15.9]}
34. Rb1 {[%clk 0:01:40.7]} 34... Kf7 {[%clk 0:00:13.7]} 35. Be1 {[%clk
0:01:30.1]} 35... Ke8 {[%clk 0:00:13.3]} 36. Bxa5 {[%clk 0:01:21.1]} 1-0

[Event "*** Titled Tuesday Blitz"]
[Site "Chess.com"]
[Date "2020.05.12"]
[Round "2"]
[White "OparinGrigoriy"]
[Black "korbul"]
[Result "1/2-1/2"]
[WhiteElo "2920"]
[BlackElo "2574"]
[TimeControl "180+1"]
[EndTime "10:17:06 PDT"]
[Termination "Game drawn by agreement"]

1. Nf3 {[%clk 0:03:00.9]} 1... d5 {[%clk 0:02:59.2]} 2. g3 {[%clk 0:03:01.3]}
2... Nf6 {[%clk 0:02:59.4]} 3. Bg2 {[%clk 0:03:01.8]} 3... e6 {[%clk 0:02:59.8]}
4. c4 {[%clk 0:03:00.7]} 4... Be7 {[%clk 0:03:00.7]} 5. d4 {[%clk 0:03:01.4]}
5... O-O {[%clk 0:03:00.6]} 6. Nc3 {[%clk 0:03:02.1]} 6... c6 {[%clk 0:03:00.5]}
7. b3 {[%clk 0:03:00.9]} 7... Nbd7 {[%clk 0:03:00.4]} 8. O-O {[%clk 0:03:01.2]}
8... b6 {[%clk 0:02:59.6]} 9. Bb2 {[%clk 0:03:01.7]} 9... Ba6 {[%clk 0:02:59.1]}
10. Qd3 {[%clk 0:03:01.8]} 10... Rb8 {[%clk 0:02:54.2]} 11. Rfd1 {[%clk
0:03:00]} 11... b5 {[%clk 0:02:54]} 12. c5 {[%clk 0:02:55.2]} 12... Qc8 {[%clk
0:02:51.4]} 13. b4 {[%clk 0:02:54.5]} 13... Bb7 {[%clk 0:02:48.3]} 14. a4 {[%clk
0:02:54.3]} 14... a5 {[%clk 0:02:47.2]} 15. axb5 {[%clk 0:02:49]} 15... axb4
{[%clk 0:02:45.9]} 16. Na2 {[%clk 0:02:48.4]} 16... e5 {[%clk 0:02:40.5]} 17.
Nxe5 {[%clk 0:02:39.7]} 17... Nxe5 {[%clk 0:02:34]} 18. dxe5 {[%clk 0:02:40.6]}
18... Nd7 {[%clk 0:02:33.3]} 19. Nxb4 {[%clk 0:02:37.3]} 19... Nxc5 {[%clk
0:02:32.4]} 20. Qc3 {[%clk 0:02:29.2]} 20... cxb5 {[%clk 0:02:25.5]} 21. Nxd5
{[%clk 0:02:22.5]} 21... Bxd5 {[%clk 0:02:23.6]} 22. Bxd5 {[%clk 0:02:23.4]}
22... Na4 {[%clk 0:02:11]} 23. Qxc8 {[%clk 0:02:22.7]} 23... Rfxc8 {[%clk
0:02:07.2]} 24. Bd4 {[%clk 0:02:23.1]} 24... Nc3 {[%clk 0:02:03.4]} 25. Bxc3
{[%clk 0:02:23.5]} 25... Rxc3 {[%clk 0:02:02.8]} 26. Ra7 {[%clk 0:02:24.1]}
26... Kf8 {[%clk 0:02:00.8]} 27. Be4 {[%clk 0:02:12.1]} 27... Rc5 {[%clk
0:01:55.7]} 28. e6 {[%clk 0:02:01.4]} 28... Re5 {[%clk 0:01:45]} 29. Bxh7 {[%clk
0:01:35.7]} 29... Rxe6 {[%clk 0:01:44.6]} 30. Bd3 {[%clk 0:01:31]} 30... b4
{[%clk 0:01:44.3]} 31. Bc4 {[%clk 0:01:29.3]} 31... Re4 {[%clk 0:01:36.6]} 32.
Rdd7 {[%clk 0:01:28.2]} 32... b3 {[%clk 0:01:34.5]} 33. Bd5 {[%clk 0:01:24.4]}
33... Rxe2 {[%clk 0:01:32.7]} 34. Rab7 {[%clk 0:01:22.5]} 34... Rxb7 {[%clk
0:01:28.5]} 35. Rxb7 {[%clk 0:01:23.4]} 35... b2 {[%clk 0:01:27.6]} 36. Kf1
{[%clk 0:01:05.5]} 36... Rd2 {[%clk 0:01:27.5]} 37. Rb8+ {[%clk 0:00:54]} 37...
Bd8 {[%clk 0:01:27.1]} 38. Rxd8+ {[%clk 0:00:54.5]} 38... Ke7 {[%clk 0:01:26.9]}
39. Rb8 {[%clk 0:00:55.2]} 39... Rd1+ {[%clk 0:01:26.2]} 40. Kg2 {[%clk
0:00:55.6]} 40... b1=Q {[%clk 0:01:27.1]} 41. Rxb1 {[%clk 0:00:55.5]} 41... Rxb1
{[%clk 0:01:27.3]} 42. h4 {[%clk 0:00:55.7]} 42... g6 {[%clk 0:01:27.3]} 43. Be4
{[%clk 0:00:55.3]} 43... Rb4 {[%clk 0:01:26.8]} 44. Bf3 {[%clk 0:00:55.9]} 44...
f5 {[%clk 0:01:26.5]} 45. Bd5 {[%clk 0:00:56.3]} 45... Kf6 {[%clk 0:01:26.3]}
46. Bf3 {[%clk 0:00:56.8]} 46... Ke5 {[%clk 0:01:26]} 47. Bc6 {[%clk 0:00:56.9]}
47... Rb6 {[%clk 0:01:25.7]} 48. Bf3 {[%clk 0:00:56.9]} 48... Rd6 {[%clk
0:01:23.7]} 49. Bb7 {[%clk 0:00:56.8]} 49... Rd4 {[%clk 0:01:21]} 50. f4+ {[%clk
0:00:52.9]} 50... Kf6 {[%clk 0:01:19.6]} 51. Bf3 {[%clk 0:00:53]} 51... Rd3
{[%clk 0:01:19.4]} 52. Kf2 {[%clk 0:00:53.4]} 52... Ra3 {[%clk 0:01:19.2]} 53.
Bg2 {[%clk 0:00:53.5]} 53... Rc3 {[%clk 0:01:18.5]} 54. Bf3 {[%clk 0:00:53.9]}
54... Ra3 {[%clk 0:01:18.5]} 55. Bg2 {[%clk 0:00:54.4]} 55... Rc3 {[%clk
0:01:15.3]} 56. Bf3 {[%clk 0:00:53.9]} 1/2-1/2

[Event "*** Titled Tuesday Blitz"]
[Site "Chess.com"]
[Date "2020.05.12"]
[Round "2"]
[White "czasnaszachy"]
[Black "MoreChessJulia"]
[Result "1-0"]
[WhiteElo "2354"]
[BlackElo "1789"]
[TimeControl "180+1"]
[EndTime "10:17:07 PDT"]
[Termination "czasnaszachy won by checkmate"]

1. d4 {[%clk 0:02:57.4]} 1... c6 {[%clk 0:02:58.8]} 2. c4 {[%clk 0:02:52.3]}
2... d6 {[%clk 0:02:57.9]} 3. Nc3 {[%clk 0:02:48.7]} 3... g6 {[%clk 0:02:57]} 4.
e4 {[%clk 0:02:47.9]} 4... Bg7 {[%clk 0:02:55]} 5. f3 {[%clk 0:02:43.5]} 5...
Nd7 {[%clk 0:02:54.3]} 6. Be3 {[%clk 0:02:43.1]} 6... e5 {[%clk 0:02:53.6]} 7.
d5 {[%clk 0:02:41.1]} 7... c5 {[%clk 0:02:51.2]} 8. g4 {[%clk 0:02:36.6]} 8...
a6 {[%clk 0:02:50.4]} 9. Qd2 {[%clk 0:02:32.6]} 9... h5 {[%clk 0:02:46.6]} 10.
O-O-O {[%clk 0:02:13.1]} 10... Ne7 {[%clk 0:02:32]} 11. h4 {[%clk 0:02:01.5]}
11... Nf8 {[%clk 0:02:29.7]} 12. Be2 {[%clk 0:01:37.2]} 12... Bd7 {[%clk
0:02:23.3]} 13. Kb1 {[%clk 0:01:29.9]} 13... Rb8 {[%clk 0:02:21.7]} 14. gxh5
{[%clk 0:01:24.6]} 14... Rxh5 {[%clk 0:02:19.2]} 15. f4 {[%clk 0:01:23.7]} 15...
Rh7 {[%clk 0:02:15.1]} 16. Nf3 {[%clk 0:01:18.9]} 16... b5 {[%clk 0:02:14.1]}
17. Rdf1 {[%clk 0:01:07.1]} 17... bxc4 {[%clk 0:02:12.2]} 18. Bxc4 {[%clk
0:01:06.5]} 18... exf4 {[%clk 0:02:11.4]} 19. Bxf4 {[%clk 0:01:00.9]} 19... Nc8
{[%clk 0:02:06]} 20. Ng5 {[%clk 0:00:54.9]} 20... Qa5 {[%clk 0:02:00.8]} 21. Rf3
{[%clk 0:00:35.8]} 21... Rh8 {[%clk 0:01:48.6]} 22. Bg3 {[%clk 0:00:16.1]} 22...
f6 {[%clk 0:01:44.5]} 23. Ne6 {[%clk 0:00:14]} 23... Nxe6 {[%clk 0:01:39.3]} 24.
dxe6 {[%clk 0:00:14.2]} 24... Bb5 {[%clk 0:01:39.6]} 25. Bxb5+ {[%clk
0:00:11.7]} 25... Rxb5 {[%clk 0:01:34.4]} 26. Bxd6 {[%clk 0:00:10]} 26... f5
{[%clk 0:01:20]} 27. Bxc5 {[%clk 0:00:06.8]} 27... Rxb2+ {[%clk 0:01:14.1]} 28.
Kxb2 {[%clk 0:00:06.1]} 28... Qxc5 {[%clk 0:01:14.5]} 29. Qd7+ {[%clk
0:00:05.3]} 29... Kf8 {[%clk 0:01:13.1]} 30. Qf7# {[%clk 0:00:05.4]} 1-0

[Event "*** Titled Tuesday Blitz"]
[Site "Chess.com"]
[Date "2020.05.12"]
[Round "2"]
[White "yamalchess"]
[Black "LittlePeasant"]
[Result "0-1"]
[WhiteElo "2507"]
[BlackElo "2758"]
[TimeControl "180+1"]
[EndTime "10:17:09 PDT"]
[Termination "LittlePeasant won on time"]

1. d4 {[%clk 0:03:00.9]} 1... Nf6 {[%clk 0:02:59]} 2. c4 {[%clk 0:03:00.9]} 2...
c5 {[%clk 0:02:59.2]} 3. d5 {[%clk 0:02:59.9]} 3... b5 {[%clk 0:02:59.6]} 4.
cxb5 {[%clk 0:02:57]} 4... a6 {[%clk 0:03:00.2]} 5. Nc3 {[%clk 0:02:56.9]} 5...
axb5 {[%clk 0:02:59.7]} 6. e4 {[%clk 0:02:56.8]} 6... Qa5 {[%clk 0:02:56.2]} 7.
e5 {[%clk 0:02:55.6]} 7... Ne4 {[%clk 0:02:55.6]} 8. Qf3 {[%clk 0:02:31.6]} 8...
Nxc3 {[%clk 0:02:45.2]} 9. Bd2 {[%clk 0:02:29.2]} 9... Bb7 {[%clk 0:02:43.5]}
10. bxc3 {[%clk 0:02:24.3]} 10... c4 {[%clk 0:02:35.7]} 11. Nh3 {[%clk
0:02:17.4]} 11... e6 {[%clk 0:02:35.1]} 12. Ng5 {[%clk 0:02:11.9]} 12... Bxd5
{[%clk 0:02:22.8]} 13. Qxf7+ {[%clk 0:02:09.8]} 13... Kd8 {[%clk 0:02:23.2]} 14.
Be2 {[%clk 0:02:00.4]} 14... Nc6 {[%clk 0:02:19.9]} 15. Qf4 {[%clk 0:01:54.3]}
15... Kc7 {[%clk 0:02:19.8]} 16. O-O {[%clk 0:01:53.3]} 16... Be7 {[%clk
0:02:16.4]} 17. a4 {[%clk 0:01:50.1]} 17... bxa4 {[%clk 0:02:09.7]} 18. Ne4
{[%clk 0:01:41.7]} 18... Rhf8 {[%clk 0:01:54.8]} 19. Qe3 {[%clk 0:01:35.8]}
19... Nxe5 {[%clk 0:01:54]} 20. Qd4 {[%clk 0:01:22.7]} 20... Nc6 {[%clk
0:01:48.2]} 21. Qe3 {[%clk 0:01:13]} 21... a3 {[%clk 0:01:36.6]} 22. Qg3+ {[%clk
0:01:07]} 22... d6 {[%clk 0:01:32.1]} 23. Bf3 {[%clk 0:00:56]} 23... Bxe4 {[%clk
0:01:29.9]} 24. Bxe4 {[%clk 0:00:53.9]} 24... Qe5 {[%clk 0:01:30.5]} 25. Qe3
{[%clk 0:00:46.7]} 25... d5 {[%clk 0:01:25.2]} 26. Rfb1 {[%clk 0:00:46]} 26...
Qxe4 {[%clk 0:01:10.1]} 27. Qb6+ {[%clk 0:00:43.5]} 27... Kd6 {[%clk 0:01:10.4]}
28. Be3 {[%clk 0:00:40.3]} 28... Rfb8 {[%clk 0:01:09.5]} 29. Bc5+ {[%clk
0:00:08.1]} 29... Kd7 {[%clk 0:01:06.8]} 0-1

[Event "*** Titled Tuesday Blitz"]
[Site "Chess.com"]
[Date "2020.05.12"]
[Round "2"]
[White "SameerMujumdar"]
[Black "Alomaterapia"]
[Result "0-1"]
[WhiteElo "2171"]
[BlackElo "2432"]
[TimeControl "180+1"]
[EndTime "10:17:10 PDT"]
[Termination "Alomaterapia won by resignation"]

1. d4 {[%clk 0:03:00.9]} 1... Nf6 {[%clk 0:02:59.8]} 2. Nf3 {[%clk 0:02:58.7]}
2... g6 {[%clk 0:02:59.2]} 3. Nc3 {[%clk 0:02:56.8]} 3... d5 {[%clk 0:02:58.8]}
4. Bg5 {[%clk 0:02:55.9]} 4... Ne4 {[%clk 0:02:58.9]} 5. h4 {[%clk 0:02:55.1]}
5... h6 {[%clk 0:02:53.2]} 6. Bf4 {[%clk 0:02:54.2]} 6... Bg7 {[%clk 0:02:51.6]}
7. e3 {[%clk 0:02:53.7]} 7... Bg4 {[%clk 0:02:40.8]} 8. Be2 {[%clk 0:02:53.6]}
8... c5 {[%clk 0:02:27.9]} 9. Nxe4 {[%clk 0:02:46.9]} 9... dxe4 {[%clk
0:02:26.9]} 10. Ne5 {[%clk 0:02:47.5]} 10... Bxe2 {[%clk 0:02:21.1]} 11. Qxe2
{[%clk 0:02:47.8]} 11... O-O {[%clk 0:02:18.8]} 12. O-O-O {[%clk 0:02:34.9]}
12... Nc6 {[%clk 0:01:59]} 13. Kb1 {[%clk 0:01:54]} 13... Qa5 {[%clk 0:01:48.4]}
14. Nd7 {[%clk 0:01:36.3]} 14... Rfc8 {[%clk 0:01:25.8]} 15. Nxc5 {[%clk
0:01:31]} 15... e5 {[%clk 0:01:24.8]} 16. Nb3 {[%clk 0:01:26.9]} 16... Qa4
{[%clk 0:01:18.7]} 17. dxe5 {[%clk 0:01:26.2]} 17... Nb4 {[%clk 0:01:16.7]} 18.
a3 {[%clk 0:00:39]} 18... Rxc2 {[%clk 0:01:03.7]} 19. Rd2 {[%clk 0:00:38.7]}
19... Qxb3 {[%clk 0:00:44.6]} 20. Rxc2 {[%clk 0:00:38.4]} 20... Qa2+ {[%clk
0:00:43]} 21. Kc1 {[%clk 0:00:37.6]} 21... Rd8 {[%clk 0:00:18.2]} 0-1

[Event "*** Titled Tuesday Blitz"]
[Site "Chess.com"]
[Date "2020.05.12"]
[Round "2"]
[White "Bubachess1608"]
[Black "Tsyhanchuk_Stanislav"]
[Result "1-0"]
[WhiteElo "2313"]
[BlackElo "2558"]
[TimeControl "180+1"]
[EndTime "10:17:11 PDT"]
[Termination "Bubachess1608 won on time"]

1. e4 {[%clk 0:03:00.9]} 1... c5 {[%clk 0:02:58]} 2. d3 {[%clk 0:02:59.8]} 2...
Nc6 {[%clk 0:02:54.3]} 3. c3 {[%clk 0:02:58.7]} 3... d6 {[%clk 0:02:54.7]} 4. f4
{[%clk 0:02:58.3]} 4... g6 {[%clk 0:02:54.8]} 5. Nf3 {[%clk 0:02:58]} 5... Bg7
{[%clk 0:02:54.7]} 6. g3 {[%clk 0:02:58.5]} 6... e6 {[%clk 0:02:54.9]} 7. Bg2
{[%clk 0:02:58.7]} 7... Nge7 {[%clk 0:02:55.5]} 8. O-O {[%clk 0:02:57.1]} 8...
O-O {[%clk 0:02:55.8]} 9. Be3 {[%clk 0:02:56.8]} 9... Rb8 {[%clk 0:02:55.2]} 10.
a4 {[%clk 0:02:55.7]} 10... a6 {[%clk 0:02:54.3]} 11. Bf2 {[%clk 0:02:53.2]}
11... b5 {[%clk 0:02:54.1]} 12. d4 {[%clk 0:02:52.9]} 12... cxd4 {[%clk
0:02:50.3]} 13. axb5 {[%clk 0:02:52.4]} 13... axb5 {[%clk 0:02:33.4]} 14. cxd4
{[%clk 0:02:51.2]} 14... Bd7 {[%clk 0:02:15.2]} 15. Nbd2 {[%clk 0:02:50.4]}
15... b4 {[%clk 0:02:06.5]} 16. Nb3 {[%clk 0:02:49.7]} 16... Qc7 {[%clk
0:01:54.3]} 17. Qd2 {[%clk 0:02:49.3]} 17... Rfc8 {[%clk 0:01:51.7]} 18. Rfc1
{[%clk 0:02:48.4]} 18... Qb7 {[%clk 0:01:48.1]} 19. d5 {[%clk 0:02:46.6]} 19...
exd5 {[%clk 0:01:47.3]} 20. exd5 {[%clk 0:02:46.2]} 20... Nd8 {[%clk 0:01:39.5]}
21. Nfd4 {[%clk 0:02:36.6]} 21... Rxc1+ {[%clk 0:01:33.9]} 22. Rxc1 {[%clk
0:02:35]} 22... Rc8 {[%clk 0:01:27]} 23. Re1 {[%clk 0:02:33.7]} 23... Ba4 {[%clk
0:00:56.1]} 24. Na5 {[%clk 0:02:29.4]} 24... Qc7 {[%clk 0:00:42.5]} 25. b3
{[%clk 0:02:21.5]} 25... Be8 {[%clk 0:00:39.8]} 26. Nac6 {[%clk 0:02:18.7]}
26... Ndxc6 {[%clk 0:00:37.6]} 27. dxc6 {[%clk 0:02:13.3]} 27... Nxc6 {[%clk
0:00:34.6]} 28. Rc1 {[%clk 0:02:01.1]} 28... Qb7 {[%clk 0:00:17]} 29. Qc2 {[%clk
0:01:43.3]} 29... Bxd4 {[%clk 0:00:16.7]} 30. Bxd4 {[%clk 0:01:38.5]} 30... Bd7
{[%clk 0:00:17.1]} 31. Bb2 {[%clk 0:01:32.4]} 31... Qb8 {[%clk 0:00:11.8]} 32.
Qd2 {[%clk 0:01:29.3]} 32... Ne7 {[%clk 0:00:09.7]} 33. Rxc8+ {[%clk 0:01:22.9]}
33... Bxc8 {[%clk 0:00:10.6]} 34. Qd4 {[%clk 0:01:21.2]} 1-0

[Event "*** Titled Tuesday Blitz"]
[Site "Chess.com"]
[Date "2020.05.12"]
[Round "2"]
[White "Mfcyryd"]
[Black "Harsha_Bharathakoti"]
[Result "1-0"]
[WhiteElo "2550"]
[BlackElo "2815"]
[TimeControl "180+1"]
[EndTime "10:17:13 PDT"]
[Termination "Mfcyryd won by resignation"]

1. e4 {[%clk 0:03:00.9]} 1... c5 {[%clk 0:02:58.6]} 2. Nf3 {[%clk 0:03:01]} 2...
Nc6 {[%clk 0:02:58.7]} 3. d4 {[%clk 0:03:01.9]} 3... cxd4 {[%clk 0:02:59.6]} 4.
Nxd4 {[%clk 0:03:02.7]} 4... e5 {[%clk 0:03:00.4]} 5. Nb5 {[%clk 0:03:02.1]}
5... d6 {[%clk 0:03:01.2]} 6. N1c3 {[%clk 0:03:01.3]} 6... a6 {[%clk 0:03:01.5]}
7. Na3 {[%clk 0:03:00.7]} 7... Be7 {[%clk 0:02:57.7]} 8. Nc4 {[%clk 0:02:59.3]}
8... Nf6 {[%clk 0:02:51.8]} 9. Bg5 {[%clk 0:02:55.5]} 9... Nd4 {[%clk
0:02:25.9]} 10. Bxf6 {[%clk 0:02:54]} 10... Bxf6 {[%clk 0:02:26.8]} 11. Ne3
{[%clk 0:02:53.4]} 11... O-O {[%clk 0:02:24.8]} 12. Ncd5 {[%clk 0:02:51.9]}
12... Be6 {[%clk 0:02:19.2]} 13. c3 {[%clk 0:02:50.4]} 13... Nc6 {[%clk
0:02:19.9]} 14. Be2 {[%clk 0:02:47.4]} 14... Bg5 {[%clk 0:02:20.2]} 15. h4
{[%clk 0:02:45.5]} 15... Bh6 {[%clk 0:02:08.7]} 16. Bg4 {[%clk 0:02:36.7]} 16...
Ne7 {[%clk 0:02:07.8]} 17. Nxe7+ {[%clk 0:02:21.9]} 17... Qxe7 {[%clk
0:02:06.9]} 18. Bxe6 {[%clk 0:02:22.8]} 18... fxe6 {[%clk 0:02:07.8]} 19. Ng4
{[%clk 0:02:21.2]} 19... Rf4 {[%clk 0:01:48]} 20. Qe2 {[%clk 0:02:10.2]} 20...
Rc8 {[%clk 0:01:41]} 21. g3 {[%clk 0:02:07.5]} 21... Rff8 {[%clk 0:01:38.4]} 22.
Nxh6+ {[%clk 0:02:06.8]} 22... gxh6 {[%clk 0:01:39.3]} 23. O-O-O {[%clk
0:02:01.2]} 23... Rc6 {[%clk 0:01:39.7]} 24. Kb1 {[%clk 0:01:56.2]} 24... Qf6
{[%clk 0:01:37.5]} 25. Rd2 {[%clk 0:01:51.1]} 25... Kf7 {[%clk 0:01:08.1]} 26.
Rhd1 {[%clk 0:01:46.7]} 26... Ke7 {[%clk 0:01:08.6]} 27. Qe3 {[%clk 0:01:35.4]}
27... Qf3 {[%clk 0:01:00]} 28. Qa7 {[%clk 0:01:33.8]} 28... Qxe4+ {[%clk
0:01:00.5]} 29. Ka1 {[%clk 0:01:33]} 29... d5 {[%clk 0:00:29.4]} 30. Qxb7+
{[%clk 0:01:31.6]} 30... Kd6 {[%clk 0:00:30.1]} 31. Rd3 {[%clk 0:01:07.6]} 31...
Rxf2 {[%clk 0:00:26.3]} 32. Qb8+ {[%clk 0:01:04.1]} 32... Ke7 {[%clk 0:00:23.1]}
33. Qa7+ {[%clk 0:01:02.2]} 1-0